Cogmind - Beta 14 @@@ ROGUE MODE // 2024.11.05 @ 20:26:06 Player: gorb Result: Destroyed by G-47 Trooper with Particle Gun Performance ------------- Evolutions (1) 500 Regions Visited (3) 600 Robots Destroyed (43) 215 Value Destroyed (1307) 1307 Prototype IDs (3) 60 Alien Tech Used (0) 0 Bonus (0) 0 TOTAL SCORE: 2682 Bonus ------- None Cogmind --------- Core Integrity 0/400 Matter 114/300 Energy 100/100 System Corruption 15% Temperature Cool (9) Movement Treading (320) Ox2 Location -9/Storage Parts ------- > --- POWER (1) -------- (None) > --- PROPULSION (4) --- Light Treads > --- UTILITY (2) ------ High-capacity Storage Unit Light Armor Plating > --- WEAPON (2) ------- Heavy Assault Rifle > --- INVENTORY (20) --- Ion Engine Light Ion Engine Backup Power I Cooled Ion Engine Aluminum Leg Small Battery (100) Power Shielding Light Armor Plating Light Armor Plating Authchip [Weapon] EM Pulse Gun Small Laser Cooled Plasma Cannon Light Assault Rifle Peak State ------------ > --- POWER ------------ Heavy Ion Engine > --- PROPULSION ------- Light Treads Light Treads Light Treads Light Treads > --- UTILITY ---------- High-capacity Storage Unit Hardened Light Armor Plating > --- WEAPON ----------- Cooled Plasma Cannon Light Assault Rifle > --- INVENTORY -------- Ion Engine Light Ion Engine Backup Power I Cooled Ion Engine Aluminum Leg Small Battery Power Shielding Light Armor Plating Light Armor Plating EM Pulse Gun Small Laser Grenade Launcher Mini Grenade Launcher [Rating: 18] Favorites ----------- Power Heavy Ion Engine Engine Heavy Ion Engine Propulsion Light Treads Treads Light Treads Leg Aluminum Leg Utility High-capacity Storage Unit Storage High-capacity Storage Unit Processor Visual Processing Unit Hackware Hacking Suite Protection Light Armor Plating Weapon Light Assault Rifle Energy Gun EM Pulse Gun Energy Cannon Cooled Plasma Cannon Ballistic Gun Light Assault Rifle Launcher Grenade Launcher Build | -11 -10 -9 -9 ------- Run | Yrd Mat Mat Sto Slots Evolved 2 | . . 2 . Power . | . . . . Propulsion 2 | . . 2 . Utility . | . . . . Weapon . | . . . . Parts Attached 37 | 7 4 13 13 Power 6 | 2 1 1 2 Engine 6 | 2 1 1 2 Core . | . . . . Reactor . | . . . . Propulsion 11 | 2 . 6 3 Treads 7 | . . 4 3 Leg 4 | 2 . 2 . Wheel . | . . . . Hover . | . . . . Flight . | . . . . Utility 9 | 1 1 4 3 Device . | . . . . Storage 3 | 1 1 1 . Processor 1 | . . 1 . Hackware 1 | . . 1 . Protection 4 | . . 1 3 Artifact . | . . . . Weapon 11 | 2 2 2 5 Energy Gun 2 | 2 . . . Energy Cannon 1 | . . . 1 Ballistic Gun 5 | . 2 1 2 Ballistic Cannon . | . . . . Launcher 3 | . . 1 2 Special Weapon . | . . . . Impact Weapon . | . . . . Slashing Weapon . | . . . . Piercing Weapon . | . . . . Special Melee Weapon . | . . . . Unidentified Prototypes 3 | . . . 3 Parts Lost 18 | . 2 6 10 Power 2 | . . 1 1 Propulsion 9 | . 1 3 5 Utility 3 | . . 1 2 Weapon 4 | . 1 1 2 Highest Loss Streak 4 | . 1 4 3 To Critical Strikes . | . . . . Average Slot Usage (%) 81 | . 91 75 80 Engine 11 | . 14 11 10 Treads 19 | . . 13 28 Leg 5 | . 21 9 . Storage 14 | . 27 13 11 Protection 5 | . . . 8 Energy Gun 2 | . 10 . . Energy Cannon 3 | . . . 4 Ballistic Gun 12 | . 16 19 9 Launcher 4 | . . 1 7 Peak Build Rating 18 | 6 7 10 18 Average Rating 11 | 3 6 8 13 On Entrance 5 | . 6 6 8 Naked Turns . | . . . . Heaviest Build 66 | 14 15 50 66 Greatest Support 80 | 20 20 60 80 Greatest Overweight (x) 4 | 4 1 2 2 Average Overweight (x) . | . . . . Largest Inventory Capacity 20 | 8 8 20 20 Average Capacity 15 | 6 8 12 20 Most Carried 16 | 5 8 9 16 Average Carried 10 | 3 6 7 13 Final Capacity 20 | 8 8 20 20 Final Carried 14 | 3 8 7 14 Class Distribution -------------------- 73% | Mutant 26% | Scavenger-Mutant Dominant Class ---------------- Mutant | -10/Materials Mutant | -9/Materials Mutant | -9/Storage Resources | -11 -10 -9 -9 ----------- Run | Yrd Mat Mat Sto Matter Collected 876 | 234 94 203 345 Remotely . | . . . . Salvage Created 1458 | . 338 304 816 Parts 93 | . 20 18 55 Haulers Intercepted . | . . . . Recyclers Shooed 2 | . . 1 1 Parts Field Recycled . | . . . . Retrieved Matter . | . . . . Parts Self-Destructed . | . . . . Prevented . | . . . . Kills | -11 -10 -9 -9 ------- Run | Yrd Mat Mat Sto Combat Hostiles Destroyed 33 | . 9 8 16 Guns 19 | . 9 8 2 Cannons 6 | . . . 6 AOE 8 | . . . 8 Classes Destroyed 9 | . 3 3 3 Worker 2 | . . . 2 Builder 3 | . . . 3 Recycler 2 | . . . 2 Operator 1 | . . 1 . Watcher 2 | . 1 . 1 Swarmer 6 | . 3 3 . Grunt 15 | . 6 1 8 Brawler 1 | . . 1 . Sentry 11 | . . 3 8 Best Kill Streak 6 | . 3 3 6 Combat Bots Only 6 | . 3 3 6 Max Kills in Single Turn 2 | . 1 1 2 Gunslinging . | . . . . Exploded 2 | . . . 2 Melee . | . . . . Uniques/NPCs Destroyed . | . . . . Combat | -11 -10 -9 -9 -------- Run | Yrd Mat Mat Sto Hostile Shots Fired 233 | . 51 86 96 Missed 70 | . 10 26 34 Damage Taken 2876 | . 445 871 1560 Core 510 | . 105 136 269 Absorbed by Shields . | . . . . Regen/Repaired (Parts) 71 | . . . 71 Core Remaining (%) 79 | 100 58 . . Volleys Fired 133 | . 32 53 48 Largest 2 | . 2 2 2 Hottest 90 | . 90 50 65 Shots Fired 232 | . 57 88 87 Gun 179 | . 57 87 35 Cannon 20 | . . . 20 Launcher 33 | . . 1 32 Special . | . . . . Kinetic 150 | . 28 87 35 Thermal 31 | . 11 . 20 Explosive 33 | . . 1 32 Electromagnetic 18 | . 18 . . Robot Hit Streak 14 | . 8 8 14 Robot Miss Streak 4 | . 4 3 2 Penetration Max . | . . . . Secondary Targets 2 | . 1 1 . Max Gunslinging Chain 1 | . 1 1 . Shots Hit Robots 137 | . 39 56 42 Core Hits 84 | . 19 20 45 Critical Kills 1 | . . 1 . Critical Parts Destroyed . | . . . . Critical Strikes 2 | . 1 1 . Burn 1 | . 1 . . Destroy 1 | . . 1 . Melee Attacks . | . . . . Impact . | . . . . Slashing . | . . . . Piercing . | . . . . Sneak Attacks . | . . . . Combat Hostiles . | . . . . Follow-up Attacks . | . . . . Damage Inflicted 2702 | . 421 513 1768 Guns 1109 | . 421 504 184 Cannons 483 | . . . 483 Explosions 1101 | . . . 1101 Melee . | . . . . Ramming 9 | . . 9 . Kinetic 834 | . 146 504 184 Thermal 584 | . 101 . 483 Explosive 1101 | . . . 1101 Electromagnetic 174 | . 174 . . Impact . | . . . . Slashing . | . . . . Piercing . | . . . . Highest Corruption 15 | . . . 15 Average Corruption 14 | . . . 14 Corruption Purged . | . . . . Corruption Blocked . | . . . . Effects 21 | . . . 21 Message Errors 6 | . . . 6 Matter Fused 9 | . . . 9 Heat Flow Errors 1 | . . . 1 Energy Discharges 1 | . . . 1 Data Loss (minor) 2 | . . . 2 Alerts 1 | . . . 1 Weapon Failures 1 | . . . 1 Overload Shots . | . . . . Overflow Damage 66 | . . . 66 Projectiles 23 | . . . 23 Explosions 43 | . . . 43 Melee . | . . . . Knockbacks . | . . . . Impact . | . . . . Kinetic . | . . . . Secondary . | . . . . Self-Inflicted Damage 314 | . . . 314 Shots 13 | . . . 13 Rammed 6 | . . 5 1 Targets Rammed 6 | . . 5 1 Kicked . | . . . . Crushed . | . . . . Highest Temperature 261 | . 261 24 206 Average Temperature 50 | . 96 7 24 Received Heat Transfer 951 | . 189 321 441 Siege Activations . | . . . . Robots Corrupted . | . . . . Combat Hostiles . | . . . . Parts Fried 2 | . 2 . . Impact Corruptions . | . . . . Robots Melted . | . . . . Combat Hostiles . | . . . . Parts Melted 2 | . 1 . 1 Heat Transferred 1120 | . 370 . 750 Parts Sabotaged . | . . . . Parts Stolen . | . . . . Parts Stripped . | . . . . Power Chain Reactions . | . . . . Alert | -11 -10 -9 -9 ------- Run | Yrd Mat Mat Sto Peak Influence 399 | . 252 136 399 Initial 21 | . . 21 . Average 104 | . 124 68 116 Maximum Alert Level 1 | . 1 . 1 Low Security (%) 92 | 100 92 100 89 Level 1 7 | . 7 . 10 Level 2 . | . . . . Level 3 . | . . . . Level 4 . | . . . . Level 5 . | . . . . High Security . | . . . . Max Security . | . . . . Squads Dispatched 3 | . 3 . . Investigation 1 | . 1 . . Extermination . | . . . . Reinforcement 2 | . 2 . . Assault . | . . . . Garrison . | . . . . Intercept . | . . . . Searches Triggered . | . . . . Construction Impeded . | . . . . Haulers Reinforced . | . . . . Active Scanning Responses . | . . . . Cargo Convoy Interrupts . | . . . . Stealth | -11 -10 -9 -9 --------- Run | Yrd Mat Mat Sto Distress Signals 3 | . . 1 2 Communications Jammed . | . . . . Distress Signals . | . . . . Times Spotted 45 | . 13 11 21 Peak Tracking Total 6 | . 3 3 6 Tactical Retreats 2 | . . . 2 Traps | -11 -10 -9 -9 ------- Run | Yrd Mat Mat Sto Traps Triggered 3 | . 1 . 2 Indirectly . | . . . . Trap Hack Attempts . | . . . . Triggered . | . . . . Disarmed . | . . . . Reprogrammed . | . . . . Reused . | . . . . Traps Extracted . | . . . . Installed . | . . . . Triggered . | . . . . Machines | -11 -10 -9 -9 ---------- Run | Yrd Mat Mat Sto Machines Disabled 9 | . . . 9 Max in Single Turn 4 | . . . 4 Garrison Access 1 | . . . 1 Machines Repaired . | . . . . Machines Dismantled . | . . . . Machines Sabotaged . | . . . . Overloaded Fab Kills . | . . . . Hacking | -11 -10 -9 -9 --------- Run | Yrd Mat Mat Sto Machines Accessed 10 | . 1 1 8 Terminals 8 | . 1 1 6 Fabricators . | . . . . Repair Stations 1 | . . . 1 Recycling Units . | . . . . Scanalyzers . | . . . . Garrison Access 1 | . . . 1 Total Hacks 15 | . 1 3 11 Successful 11 | . . 2 9 Failed 4 | . 1 1 2 Catastrophic . | . . . . Database Lockouts . | . . . . Manual 1 | . 1 . . Terminals 11 | . 1 3 7 Fabricators . | . . . . Repair Stations 3 | . . . 3 Recycling Units . | . . . . Scanalyzers . | . . . . Garrison Access 1 | . . . 1 Terminal Hacks 8 | . . 2 6 Record 1 | . . 1 . Open Door 3 | . . . 3 Branch Access Points 1 | . . . 1 Emergency Access Points 1 | . . . 1 Alert Level 1 | . . . 1 Unreport Threat 1 | . . 1 . Fabricator Hacks . | . . . . Repair Station Hacks 2 | . . . 2 Scan Component 1 | . . . 1 Repair 1 | . . . 1 Recycling Unit Hacks . | . . . . Scanalyzer . | . . . . Garrison Access Hacks 1 | . . . 1 Seal Access 1 | . . . 1 Unauthorized Hacks . | . . . . Terminals . | . . . . Fabricators . | . . . . Repair Stations . | . . . . Recycling Units . | . . . . Scanalyzers . | . . . . Garrison Access . | . . . . Data Cores Recovered 1 | . . 1 . Used . | . . . . Hacking Detections 1 | . 1 . . Full Trace Events . | . . . . Feedback Events . | . . . . Feedback Blocked . | . . . . Robot Schematics Acquired . | . . . . Robots Built . | . . . . Authchips . | . . . . Time . | . . . . Total Robot Build Rating . | . . . . Part Schematics Acquired . | . . . . Parts Built . | . . . . Authchips . | . . . . Time . | . . . . Total Part Build Rating . | . . . . Parts Repaired 1 | . . . 1 Time 26 | . . . 26 Parts Recycled . | . . . . Recycled Matter . | . . . . Retrieved Matter . | . . . . Retrieved Components . | . . . . Parts Scanalyzed . | . . . . Part Schematics Acquired . | . . . . Parts Damaged . | . . . . Bothacking | -11 -10 -9 -9 ------------ Run | Yrd Mat Mat Sto Used RIF Installer . | . . . . Robots Hacked . | . . . . Non-combat . | . . . . Combat . | . . . . Robot Hacks Applied . | . . . . Relay Couplers Released . | . . . . Fabnet Peak Effective % . | . . . . Robots Rewired . | . . . . Allies Hacked . | . . . . Hacks Repelled . | . . . . Allies | -11 -10 -9 -9 -------- Run | Yrd Mat Mat Sto Total Allies . | . . . . Largest Group . | . . . . Highest-Rated Group . | . . . . Highest-Rated Ally . | . . . . Total Orders . | . . . . Ally Attacks . | . . . . Total Damage . | . . . . Kills . | . . . . Allies Corrupted . | . . . . Allies Melted . | . . . . Intel | -11 -10 -9 -9 ------- Run | Yrd Mat Mat Sto Robot Analysis Total . | . . . . Derelict Logs Recovered . | . . . . Drone Launches . | . . . . Drone Recoveries . | . . . . Exploration | -11 -10 -9 -9 ------------- Run | Yrd Mat Mat Sto Turns Passed 2262 | 79 414 445 1324 Spaces Moved 955 | 60 205 171 519 Core 43 | 43 . . . Treads 623 | . . 104 519 Legs 289 | 17 205 67 . Wheels . | . . . . Hover . | . . . . Flight . | . . . . Fastest Speed 50 | 50 120 120 160 Average Speed 187 | 107 150 165 218 Slowest Speed 320 | 250 190 320 320 Overloaded Moves . | . . . . Propulsion Burnouts . | . . . . Robots Hopped . | . . . . Cave-ins Triggered 1 | . . . 1 Exploration Rate (%) 35 | 4 57 13 66 Regions Visited 3 Branch Regions 1 Pre-discovered Areas . | . . . . Known Exits Taken . | . . . . Unknown Exits Taken 3 | 1 1 1 . Scrap Searched . | . . . . Spaces Dug 47 | . . . 47 Terrain Destroyed 209 | . . 9 200 Melee . | . . . . Projectile 4 | . . . 4 AOE 205 | . . 9 196 Terrain Rammed . | . . . . Walls Destroyed . | . . . . Machines Disabled . | . . . . Actions | -11 -10 -9 -9 --------- Run | Yrd Mat Mat Sto Total 1208 | 73 260 252 623 Wait 40 | . 12 2 26 Move 952 | 59 204 170 519 Hop . | . . . . Pick Up 36 | 6 7 8 15 Fast Attach 3 | 3 . . . Attach 19 | 3 2 8 6 Detach . | . . . . Swap 15 | 1 2 5 7 Drop 4 | 1 1 1 1 Fire 133 | . 32 53 48 Melee . | . . . . Ram . | . . . . Kick . | . . . . Crush 6 | . . 5 1 Escape Stasis . | . . . . Rewire . | . . . . Trap . | . . . . Miscellaneous . | . . . . Route ------- -11/Scrapyard -10/Materials -9/Materials -9/Storage (discovered 1 exit: Rec) History --------- Turn | Location | Event 12 | -11/Scrapyard | Discovered new exit (range 14) 80 | -11/Scrapyard | Entered Materials 302 | -10/Materials | Build established: Mutant 490 | -10/Materials | Discovered new exit (range 3) 494 | -10/Materials | Entered another Materials area 494 | -9/Materials | Evolved 2 slots: Propulsion x2 798 | -9/Materials | Discovered new exit (range 15) 911 | -9/Materials | Lost 4 parts (1p1n1u1w) 939 | -9/Materials | Entered Storage 1374 | -9/Storage | Core integrity fell below 50% 1426 | -9/Storage | Repaired Lgt. Assault Rifle 1561 | -9/Storage | Identified exit to Recycling 1678 | -9/Storage | Build established: Scavenger-Mutant 1750 | -9/Storage | Crushed by falling debris 1750 | -9/Storage | Core integrity fell below 20% 1750 | -9/Storage | System corruption reached 10% 1781 | -9/Storage | Lost 3 parts (2n1w) 2263 | -9/Storage | Destroyed by G-47 Trooper with Particle Gun Last Messages --------------- Lgt. Treads destroyed. K-01 Serf collects debris. U-05 Engineer builds a Wall. K-01 Serf collects debris. System corrupted: Component data lost. The unstable cave ceiling collapses. K-01 Serf destroyed. Y-45 Defender destroyed. The unstable cave ceiling collapses. U-05 Engineer builds a Wall. The unstable cave ceiling collapses. W-16 Scout sends out distress signal. G-34 Mercenary destroyed. R-06 Scavenger collects Lgt. Treads. System corrupted: Hvy. Assault Rifle jammed. Destroyed Hover Unit. R-06 Scavenger collects Lgt. Treads. System corrupted: Matter fused (-10). Mni. Grenade Launcher destroyed. K-01 Serf collects debris. Map ----- +----------------------------------------------------+ | ###########?????????????????????????????? | | ##""" #?????????????????????????????? | | #"R" ### ##????????????????????????????? | | # " "## ####????????????????????????????? | | # % ###???????????????????????????? | | ! + # #???????????????????????????? | | ##+## ^ ###???????????????????????????? | | # %= ##????????????????????????????? | | # ##????????????????????????????? | | + ##????????????????????????????? | | # ^ #####?????????????????????????? | | # ## #"""""????????????????????????? | | # #######+####""T""#?##????????????????????? | | # ##### # ? ???????????????????? | | # # """ """ ???????????????????? | | + """ """ ???????????????????? | | #+###+## # """ """ ???????????????????? | | ## ## ????????????????????? | | ]## ### ## ###????????#??????????? | | ## # ######?? #??????????? | | ## # = #? #??????????? | | ## # #??????????? | | ## # #??????????? | | ## # [ #??????????? | | [ !# *%! # #??????????? | | # = % % # @ r % "???????? | | ######### # #?????????? | | ?????? # # #????????? | | ?????? # "" # # = #????????? | | ????? ##""""" [= #????????? | | ????# ### # # # ### w #????????? | | ????# #?###### #????????? | | ????+ #??????# [ # g #????????? | | ????# ???????# | = # ##????????? | | ????# ???????# #? k #?????????? | | ????+ ???????+ #? ##?????????? | | ????# ???????# """ """ #?? #??????????? | | ????### ###???????# """ """ #?? #??????????? | | ??????# ??????????# "?" ""??#??? ???????????? | | ??????????????????###?###???????????????????? | | ????????????????????????????????????????????? | | ????????????????????????????????????????????? | | ????????????????????????????????????????????? | | ????????????????????????????????????????????? | | ????????????????????????????????????????????? | | ????????????????????????????????????????????? | | ????????????????????????????????????????????? | | ????????????????????????????????????????????? | | ????????????????????????????????????????????? | | ????????????????????????????????????????????? | +----------------------------------------------------+ Best States ------------- Heat Dissipation 28 Energy Generation 14 Energy Capacity 350 Matter Stores 300 Matter Capacity 300 Sight Range 18 Terrain Scan Density 10 Armor Coverage 225 Evasion (%) 55 Recoil Reduction 4 Offensive Hacking 10 Authchip Count 1 Item Schematics ----------------- None Robot Schematics ------------------ None Fabricated ------------ Nothing Alien Tech Used ----------------- None Achievements -------------- None Challenges ------------ None Game ------ Seed UtilityImpulseStorage Manual? 0 Play Time 00:22:28 Cumulative 21.1 hours Start 2024.11.05 @ 19:56:47 End 2024.11.05 @ 20:26:06 Sessions 1 Manual Loads 0 Difficulty Rogue Special Mode None Game No. 29 Rogue 27 Adventurer 0 Explorer 2 Win Type - Total 0 Types 0/0/0/0/0/0/0/0/0 Lore% 10 Gallery% 20 Achievement% 19 Wizard Run 0 Options --------- Layout 1 ASCII 0 Keyboard 0 Movement Mouse Keybinds 0 Fullscreen 1 Font 24/Smallcaps Map View 50x35 Zoom Use 0% Tactical HUD 0 Map Filters NONE Filters NONE Steam 1 RUN: b62dac0f-ed2e-4d80-8724-e47147809fbe